[Event "Late-Titled-Tuesday-Blitz-June-04-2024"]
[Site "Chess.com"]
[Date "2024.06.04"]
[Round "3"]
[White "alexrustemov"]
[Black "topce"]
[Result "1/2-1/2"]
[WhiteElo "2820"]
[BlackElo "2461"]
[TimeControl "180+1"]
[EndTime "14:29:16 PDT"]
[Termination "Game drawn by repetition"]

1. d4 {[%clk 0:02:57.5]} 1... d5 {[%clk 0:02:57.2]} 2. c4 {[%clk 0:02:57.3]}
2... e6 {[%clk 0:02:56.3]} 3. Nc3 {[%clk 0:02:57.2]} 3... Nf6 {[%clk 0:02:55.3]}
4. cxd5 {[%clk 0:02:57.3]} 4... exd5 {[%clk 0:02:55]} 5. Bg5 {[%clk 0:02:57.7]}
5... c6 {[%clk 0:02:54.2]} 6. e3 {[%clk 0:02:57.7]} 6... h6 {[%clk 0:02:54.2]}
7. Bh4 {[%clk 0:02:57.4]} 7... g5 {[%clk 0:02:54.2]} 8. Bg3 {[%clk 0:02:57]}
8... Be6 {[%clk 0:02:53.9]} 9. Bd3 {[%clk 0:02:52.1]} 9... Nbd7 {[%clk
0:02:53.3]} 10. h3 {[%clk 0:02:47.9]} 10... Bg7 {[%clk 0:02:53.1]} 11. Nf3
{[%clk 0:02:45.7]} 11... Qb6 {[%clk 0:02:48.8]} 12. Rb1 {[%clk 0:02:44.3]} 12...
O-O {[%clk 0:02:46.2]} 13. O-O {[%clk 0:02:37.8]} 13... a5 {[%clk 0:02:43.9]}
14. Qc2 {[%clk 0:02:36.6]} 14... Nh5 {[%clk 0:02:33.1]} 15. Bh2 {[%clk
0:02:31.7]} 15... f5 {[%clk 0:02:31.7]} 16. Rfe1 {[%clk 0:02:20.9]} 16... Qd8
{[%clk 0:02:21.3]} 17. Na4 {[%clk 0:02:16.5]} 17... Qf6 {[%clk 0:02:00.1]} 18.
Ne5 {[%clk 0:02:14.6]} 18... Rae8 {[%clk 0:01:36.9]} 19. Nxd7 {[%clk 0:02:10.2]}
19... Bxd7 {[%clk 0:01:37.8]} 20. Nc5 {[%clk 0:02:10.4]} 20... Bc8 {[%clk
0:01:36.9]} 21. Be5 {[%clk 0:02:08.8]} 21... Rxe5 {[%clk 0:01:35.9]} 22. dxe5
{[%clk 0:02:08.5]} 22... Qxe5 {[%clk 0:01:36.8]} 23. Be2 {[%clk 0:02:02]} 23...
Nf6 {[%clk 0:01:35.3]} 24. Nd3 {[%clk 0:01:59.1]} 24... Qc7 {[%clk 0:01:28.6]}
25. Bf1 {[%clk 0:01:55.2]} 25... Ne4 {[%clk 0:01:28.2]} 26. g3 {[%clk
0:01:55.1]} 26... Qe7 {[%clk 0:01:09.6]} 27. Bg2 {[%clk 0:01:54.7]} 27... Re8
{[%clk 0:01:08.5]} 28. Rbd1 {[%clk 0:01:51.2]} 28... Be6 {[%clk 0:01:06.7]} 29.
a3 {[%clk 0:01:49.9]} 29... Nd6 {[%clk 0:01:03.7]} 30. Qc5 {[%clk 0:01:39.2]}
30... a4 {[%clk 0:00:56.9]} 31. Qb4 {[%clk 0:01:32.7]} 31... b5 {[%clk
0:00:52.8]} 32. Re2 {[%clk 0:01:28.9]} 32... Nc4 {[%clk 0:00:51]} 33. Qxe7
{[%clk 0:01:16.2]} 33... Rxe7 {[%clk 0:00:51.9]} 34. Rc1 {[%clk 0:01:16.5]}
34... Kf7 {[%clk 0:00:43.1]} 35. Rcc2 {[%clk 0:01:16.6]} 35... Re8 {[%clk
0:00:42.7]} 36. Nb4 {[%clk 0:01:15.1]} 36... Bd7 {[%clk 0:00:42]} 37. Bf3 {[%clk
0:00:59.8]} 37... g4 {[%clk 0:00:37.7]} 38. Bg2 {[%clk 0:00:57.8]} 38... h5
{[%clk 0:00:37.2]} 39. h4 {[%clk 0:00:57.3]} 39... Bf6 {[%clk 0:00:36.1]} 40.
Nd3 {[%clk 0:00:57.7]} 40... Be5 {[%clk 0:00:32.4]} 41. Nxe5+ {[%clk 0:00:54.9]}
41... Rxe5 {[%clk 0:00:30.3]} 42. Re1 {[%clk 0:00:53.5]} 42... Kf6 {[%clk
0:00:29.8]} 43. Bf1 {[%clk 0:00:53]} 43... Nd6 {[%clk 0:00:29.5]} 44. Bd3 {[%clk
0:00:51.6]} 44... Ke7 {[%clk 0:00:29.3]} 45. Rec1 {[%clk 0:00:49.8]} 45... Nc4
{[%clk 0:00:21.6]} 46. Kf1 {[%clk 0:00:49.3]} 46... Kd6 {[%clk 0:00:19.2]} 47.
Ra1 {[%clk 0:00:46.3]} 47... Nb6 {[%clk 0:00:19.1]} 48. Rc3 {[%clk 0:00:45]}
48... c5 {[%clk 0:00:16.9]} 49. Be2 {[%clk 0:00:41.7]} 49... c4 {[%clk 0:00:17]}
50. Rd1 {[%clk 0:00:40.6]} 50... Kc5 {[%clk 0:00:15.7]} 51. Rc2 {[%clk
0:00:40.1]} 51... Bc6 {[%clk 0:00:14.8]} 52. Rd4 {[%clk 0:00:38.2]} 52... Nc8
{[%clk 0:00:13.4]} 53. Rf4 {[%clk 0:00:36.9]} 53... Nd6 {[%clk 0:00:13.4]} 54.
Rc1 {[%clk 0:00:35.1]} 54... Ne4 {[%clk 0:00:13.1]} 55. Bd1 {[%clk 0:00:32.9]}
55... Bb7 {[%clk 0:00:12.9]} 56. Bc2 {[%clk 0:00:32.9]} 56... Bc6 {[%clk
0:00:12.7]} 57. Bxe4 {[%clk 0:00:32.1]} 57... dxe4 {[%clk 0:00:13]} 58. Rd1
{[%clk 0:00:29.9]} 58... Bd5 {[%clk 0:00:12.3]} 59. Ke2 {[%clk 0:00:29.4]} 59...
Be6 {[%clk 0:00:12.2]} 60. Rd4 {[%clk 0:00:28.3]} 60... Rd5 {[%clk 0:00:11.8]}
61. Rxd5+ {[%clk 0:00:22.3]} 61... Kxd5 {[%clk 0:00:12.7]} 62. Kd2 {[%clk
0:00:22.7]} 62... Kc5 {[%clk 0:00:12.9]} 63. Kc3 {[%clk 0:00:22.5]} 63... Bd7
{[%clk 0:00:12.4]} 64. Kd2 {[%clk 0:00:18]} 64... Be6 {[%clk 0:00:12.2]} 65. Kc3
{[%clk 0:00:18.3]} 65... Bd7 {[%clk 0:00:12.2]} 66. Kc2 {[%clk 0:00:17.5]} 66...
b4 {[%clk 0:00:10.9]} 67. Kd2 {[%clk 0:00:13.2]} 67... Be6 {[%clk 0:00:10.9]}
68. Kc2 {[%clk 0:00:11.4]} 68... Bd7 {[%clk 0:00:10.1]} 69. Kd2 {[%clk
0:00:11.2]} 69... Be6 {[%clk 0:00:09.8]} 70. Kc2 {[%clk 0:00:11.6]} 70... Bd7
{[%clk 0:00:09.6]} 1/2-1/2

[Event "Late-Titled-Tuesday-Blitz-June-04-2024"]
[Site "Chess.com"]
[Date "2024.06.04"]
[Round "3"]
[White "Good_Knight_Kiss"]
[Black "subham777"]
[Result "1-0"]
[WhiteElo "2355"]
[BlackElo "2544"]
[TimeControl "180+1"]
[EndTime "14:29:17 PDT"]
[Termination "Good_Knight_Kiss won by checkmate"]

1. e4 {[%clk 0:03:00.9]} 1... e6 {[%clk 0:02:59.5]} 2. d4 {[%clk 0:03:00.6]}
2... d5 {[%clk 0:02:58.6]} 3. Nc3 {[%clk 0:03:00.9]} 3... Nf6 {[%clk 0:02:58.6]}
4. Bg5 {[%clk 0:03:00.6]} 4... Be7 {[%clk 0:02:58.6]} 5. e5 {[%clk 0:02:59.8]}
5... Nfd7 {[%clk 0:02:58.6]} 6. Bxe7 {[%clk 0:03:00.4]} 6... Qxe7 {[%clk
0:02:59.1]} 7. f4 {[%clk 0:03:00.6]} 7... a6 {[%clk 0:02:58.7]} 8. Nf3 {[%clk
0:03:00.1]} 8... c5 {[%clk 0:02:59.1]} 9. Qd2 {[%clk 0:03:00.4]} 9... Nc6 {[%clk
0:02:59.4]} 10. dxc5 {[%clk 0:03:00.4]} 10... Qxc5 {[%clk 0:02:59.5]} 11. Ne2
{[%clk 0:02:58.7]} 11... b5 {[%clk 0:02:56.1]} 12. Ned4 {[%clk 0:02:58.4]} 12...
Nb6 {[%clk 0:02:55]} 13. O-O-O {[%clk 0:02:55.6]} 13... Bd7 {[%clk 0:02:53]} 14.
h4 {[%clk 0:02:54.2]} 14... Rc8 {[%clk 0:02:49.1]} 15. Nxc6 {[%clk 0:02:49.6]}
15... Rxc6 {[%clk 0:02:47.6]} 16. Nd4 {[%clk 0:02:47.3]} 16... Rc8 {[%clk
0:02:47.3]} 17. h5 {[%clk 0:02:38.1]} 17... h6 {[%clk 0:02:47]} 18. g4 {[%clk
0:02:35.8]} 18... b4 {[%clk 0:02:44.8]} 19. f5 {[%clk 0:02:23]} 19... Qa5 {[%clk
0:02:36.7]} 20. Kb1 {[%clk 0:02:19.9]} 20... Na4 {[%clk 0:02:34.7]} 21. Ka1
{[%clk 0:01:31.6]} 21... Nc5 {[%clk 0:02:05]} 22. Bd3 {[%clk 0:01:09.9]} 22...
Bb5 {[%clk 0:01:53.1]} 23. Qf4 {[%clk 0:00:42.8]} 23... Bxd3 {[%clk 0:01:43.6]}
24. cxd3 {[%clk 0:00:40.3]} 24... b3 {[%clk 0:01:43.6]} 25. a3 {[%clk
0:00:37.2]} 25... Qb6 {[%clk 0:01:25.4]} 26. f6 {[%clk 0:00:32.5]} 26... gxf6
{[%clk 0:01:08.7]} 27. Qxf6 {[%clk 0:00:32]} 27... Rh7 {[%clk 0:01:07.2]} 28.
Nf5 {[%clk 0:00:26.4]} 28... Nd7 {[%clk 0:00:56.7]} 29. Ng7+ {[%clk 0:00:23.1]}
29... Kf8 {[%clk 0:00:53.1]} 30. Nxe6+ {[%clk 0:00:07.7]} 30... Qxe6 {[%clk
0:00:52.9]} 31. Qf4 {[%clk 0:00:04.1]} 31... Qxe5 {[%clk 0:00:52.4]} 32. Qb4+
{[%clk 0:00:04.3]} 32... Qe7 {[%clk 0:00:51]} 33. Qxb3 {[%clk 0:00:04.6]} 33...
Nc5 {[%clk 0:00:50.5]} 34. Qxd5 {[%clk 0:00:04.2]} 34... Qe6 {[%clk 0:00:50.8]}
35. Qf3 {[%clk 0:00:01.6]} 35... Nb3+ {[%clk 0:00:48.9]} 36. Kb1 {[%clk
0:00:01.6]} 36... Rg7 {[%clk 0:00:49.6]} 37. Rhf1 {[%clk 0:00:01.5]} 37... Rg5
{[%clk 0:00:43.6]} 38. d4 {[%clk 0:00:01.4]} 38... Rxg4 {[%clk 0:00:33.4]} 39.
d5 {[%clk 0:00:01.7]} 39... Qe4+ {[%clk 0:00:33.8]} 40. Qxe4 {[%clk 0:00:01.5]}
40... Rxe4 {[%clk 0:00:34.7]} 41. Ka2 {[%clk 0:00:01.6]} 41... Nc5 {[%clk
0:00:32.8]} 42. Rf6 {[%clk 0:00:01.3]} 42... Kg7 {[%clk 0:00:28.8]} 43. Rc6
{[%clk 0:00:01.5]} 43... Rxc6 {[%clk 0:00:27.4]} 44. dxc6 {[%clk 0:00:02.4]}
44... Re6 {[%clk 0:00:27.9]} 45. Rc1 {[%clk 0:00:01.6]} 45... Nd3 {[%clk
0:00:19.3]} 46. Rc3 {[%clk 0:00:01.8]} 46... Re7 {[%clk 0:00:07.7]} 47. c7
{[%clk 0:00:01.3]} 47... Rxc7 {[%clk 0:00:07.6]} 48. Rxc7 {[%clk 0:00:01.6]}
48... Ne5 {[%clk 0:00:07.7]} 49. b4 {[%clk 0:00:01.5]} 49... Kf6 {[%clk
0:00:05.5]} 50. Ra7 {[%clk 0:00:01.6]} 50... Kg5 {[%clk 0:00:04.6]} 51. Rxa6
{[%clk 0:00:01.9]} 51... f5 {[%clk 0:00:05.3]} 52. b5 {[%clk 0:00:01.9]} 52...
f4 {[%clk 0:00:05.5]} 53. b6 {[%clk 0:00:02.4]} 53... f3 {[%clk 0:00:05.3]} 54.
b7 {[%clk 0:00:02]} 54... Nd7 {[%clk 0:00:05.9]} 55. Rd6 {[%clk 0:00:01.7]}
55... Nb8 {[%clk 0:00:05.7]} 56. Rd3 {[%clk 0:00:01.4]} 56... Kf4 {[%clk
0:00:05.3]} 57. Rd8 {[%clk 0:00:01.2]} 57... Nc6 {[%clk 0:00:04.8]} 58. b8=Q+
{[%clk 0:00:01.1]} 58... Nxb8 {[%clk 0:00:04.7]} 59. Rxb8 {[%clk 0:00:01.5]}
59... f2 {[%clk 0:00:05.6]} 60. Rf8+ {[%clk 0:00:01.6]} 60... Kg3 {[%clk
0:00:06.5]} 61. a4 {[%clk 0:00:01.8]} 61... Kg2 {[%clk 0:00:07.4]} 62. a5 {[%clk
0:00:02.3]} 62... f1=Q {[%clk 0:00:08]} 63. Rxf1 {[%clk 0:00:02.1]} 63... Kxf1
{[%clk 0:00:08.3]} 64. a6 {[%clk 0:00:03]} 64... Kg2 {[%clk 0:00:09.2]} 65. a7
{[%clk 0:00:02.8]} 65... Kg3 {[%clk 0:00:10.1]} 66. a8=Q {[%clk 0:00:02.8]}
66... Kg4 {[%clk 0:00:11]} 67. Qg2+ {[%clk 0:00:02.8]} 67... Kxh5 {[%clk
0:00:11.9]} 68. Kb3 {[%clk 0:00:02.4]} 68... Kh4 {[%clk 0:00:12]} 69. Qh2+
{[%clk 0:00:02.9]} 69... Kg5 {[%clk 0:00:12.2]} 70. Kc3 {[%clk 0:00:02.8]} 70...
h5 {[%clk 0:00:13.1]} 71. Kd4 {[%clk 0:00:03.2]} 71... Kg4 {[%clk 0:00:14]} 72.
Ke3 {[%clk 0:00:03.5]} 72... h4 {[%clk 0:00:14.9]} 73. Qg2+ {[%clk 0:00:03.1]}
73... Kh5 {[%clk 0:00:14.7]} 74. Kf4 {[%clk 0:00:03.2]} 74... Kh6 {[%clk
0:00:14.8]} 75. Qg5+ {[%clk 0:00:03.2]} 75... Kh7 {[%clk 0:00:15.7]} 76. Qxh4+
{[%clk 0:00:03.3]} 76... Kg7 {[%clk 0:00:16.6]} 77. Qg5+ {[%clk 0:00:03.5]}
77... Kf7 {[%clk 0:00:17.5]} 78. Qh6 {[%clk 0:00:03.8]} 78... Ke7 {[%clk
0:00:18.4]} 79. Ke5 {[%clk 0:00:04.2]} 79... Kf7 {[%clk 0:00:19.3]} 80. Qf6+
{[%clk 0:00:04.5]} 80... Ke8 {[%clk 0:00:20.2]} 81. Qg7 {[%clk 0:00:04.7]} 81...
Kd8 {[%clk 0:00:20.5]} 82. Kd6 {[%clk 0:00:05.6]} 82... Kc8 {[%clk 0:00:21.4]}
83. Qc7# {[%clk 0:00:05.9]} 1-0

[Event "Late-Titled-Tuesday-Blitz-June-04-2024"]
[Site "Chess.com"]
[Date "2024.06.04"]
[Round "3"]
[White "RantomOpening"]
[Black "MarceloPlaya"]
[Result "1-0"]
[WhiteElo "2561"]
[BlackElo "2346"]
[TimeControl "180+1"]
[EndTime "14:30:22 PDT"]
[Termination "RantomOpening won on time"]

1. b3 {[%clk 0:03:00]} 1... e6 {[%clk 0:03:00]} 2. Bb2 {[%clk 0:03:00]} 2... Nf6
{[%clk 0:03:00.5]} 3. g3 {[%clk 0:02:59.9]} 3... d5 {[%clk 0:03:00.5]} 4. Bg2
{[%clk 0:03:00.2]} 4... Be7 {[%clk 0:03:00.7]} 5. Nf3 {[%clk 0:03:00.7]} 5...
O-O {[%clk 0:03:00.6]} 6. O-O {[%clk 0:03:01.1]} 6... c5 {[%clk 0:03:00.6]} 7.
d3 {[%clk 0:03:01.5]} 7... Nc6 {[%clk 0:03:00.4]} 8. e3 {[%clk 0:03:01.6]} 8...
Re8 {[%clk 0:02:59.3]} 9. Qe2 {[%clk 0:03:01.8]} 9... Bd6 {[%clk 0:02:54.1]} 10.
e4 {[%clk 0:03:00.9]} 10... e5 {[%clk 0:02:48.9]} 11. exd5 {[%clk 0:02:56]}
11... Nxd5 {[%clk 0:02:48.1]} 12. Nbd2 {[%clk 0:02:55.9]} 12... Bg4 {[%clk
0:02:46.4]} 13. h3 {[%clk 0:02:54.3]} 13... Bh5 {[%clk 0:02:45.6]} 14. g4 {[%clk
0:02:49.1]} 14... Nd4 {[%clk 0:02:40.6]} 15. Nxd4 {[%clk 0:02:46.3]} 15... exd4
{[%clk 0:02:39.9]} 16. Qf3 {[%clk 0:02:45.5]} 16... Nf4 {[%clk 0:02:27]} 17.
gxh5 {[%clk 0:02:44.3]} 17... Qg5 {[%clk 0:02:25]} 18. Ne4 {[%clk 0:02:43.4]}
18... Ne2+ {[%clk 0:01:41.1]} 19. Qxe2 {[%clk 0:01:49.9]} 19... Qf4 {[%clk
0:01:39.4]} 20. Rfe1 {[%clk 0:01:40.3]} 20... f5 {[%clk 0:01:36.4]} 21. Nf6+
{[%clk 0:01:13.4]} 21... gxf6 {[%clk 0:01:33.2]} 22. Qxe8+ {[%clk 0:01:12.7]}
22... Rxe8 {[%clk 0:01:31]} 23. Rxe8+ {[%clk 0:01:13.6]} 23... Kf7 {[%clk
0:01:28.5]} 24. Rae1 {[%clk 0:01:07]} 24... Be5 {[%clk 0:01:27.8]} 25. R8xe5
{[%clk 0:00:45]} 25... fxe5 {[%clk 0:01:22.6]} 26. Bc1 {[%clk 0:00:44.9]} 26...
Qh4 {[%clk 0:01:22]} 27. Rxe5 {[%clk 0:00:44.5]} 27... Qxh5 {[%clk 0:01:19.7]}
28. Bd5+ {[%clk 0:00:41.3]} 28... Kf8 {[%clk 0:01:15.8]} 29. Bf4 {[%clk
0:00:30.6]} 29... Qh4 {[%clk 0:01:06.4]} 30. Rxf5+ {[%clk 0:00:25.4]} 30... Ke8
{[%clk 0:01:05.7]} 31. Bg5 {[%clk 0:00:09.1]} 31... Qxh3 {[%clk 0:01:03.8]} 32.
Be6 {[%clk 0:00:09]} 32... Qg4+ {[%clk 0:01:01]} 33. Kh2 {[%clk 0:00:07.7]}
33... Qe2 {[%clk 0:00:54.6]} 34. Bf7+ {[%clk 0:00:04.5]} 34... Kd7 {[%clk
0:00:53.3]} 35. Bd5 {[%clk 0:00:02.9]} 35... Qxc2 {[%clk 0:00:50.2]} 36. Bf4
{[%clk 0:00:01.7]} 36... Qxf2+ {[%clk 0:00:47.8]} 37. Kh3 {[%clk 0:00:01.8]}
37... Qf1+ {[%clk 0:00:46.2]} 38. Kg4 {[%clk 0:00:01.7]} 38... Qxd3 {[%clk
0:00:43.3]} 39. Rf7+ {[%clk 0:00:01.6]} 39... Ke8 {[%clk 0:00:43]} 40. Rxb7
{[%clk 0:00:02]} 40... Qg6+ {[%clk 0:00:38.3]} 41. Kf3 {[%clk 0:00:01.8]} 41...
Qh5+ {[%clk 0:00:37.1]} 42. Ke4 {[%clk 0:00:01.3]} 42... Qg6+ {[%clk 0:00:35.6]}
43. Ke5 {[%clk 0:00:01.7]} 43... Qh5+ {[%clk 0:00:34]} 44. Kd6 {[%clk
0:00:01.7]} 44... Qg6+ {[%clk 0:00:33.7]} 45. Be6 {[%clk 0:00:01.8]} 45... Kf8
{[%clk 0:00:29.1]} 46. Rb8+ {[%clk 0:00:01.9]} 46... Kg7 {[%clk 0:00:29.1]} 47.
Be5+ {[%clk 0:00:02.8]} 47... Kh6 {[%clk 0:00:28.7]} 48. Rg8 {[%clk 0:00:03.3]}
48... Qe4 {[%clk 0:00:22]} 49. Rg4 {[%clk 0:00:02.9]} 49... Qb7 {[%clk
0:00:17.9]} 50. Rh4+ {[%clk 0:00:02.8]} 50... Kg5 {[%clk 0:00:16.9]} 51. Rh1
{[%clk 0:00:02.8]} 51... Qb8+ {[%clk 0:00:15.7]} 52. Kd5 {[%clk 0:00:02.9]}
52... Qb7+ {[%clk 0:00:15.9]} 53. Kxc5 {[%clk 0:00:03.2]} 53... Qxh1 {[%clk
0:00:15.9]} 54. Bxd4 {[%clk 0:00:03.3]} 54... h5 {[%clk 0:00:15.2]} 55. b4
{[%clk 0:00:03.5]} 55... h4 {[%clk 0:00:14.9]} 56. a4 {[%clk 0:00:03.7]} 56...
h3 {[%clk 0:00:14.6]} 57. Bd5 {[%clk 0:00:04.5]} 57... Qc1+ {[%clk 0:00:13.6]}
58. Kb5 {[%clk 0:00:03.8]} 58... h2 {[%clk 0:00:13.2]} 59. Bxa7 {[%clk
0:00:03.3]} 59... h1=Q {[%clk 0:00:11.9]} 60. Bxh1 {[%clk 0:00:03.6]} 60... Qxh1
{[%clk 0:00:11.9]} 61. a5 {[%clk 0:00:03.8]} 61... Qb7+ {[%clk 0:00:10.6]} 62.
Bb6 {[%clk 0:00:04.3]} 62... Qd5+ {[%clk 0:00:10.6]} 63. Bc5 {[%clk 0:00:04.3]}
63... Qb7+ {[%clk 0:00:10]} 64. Bb6 {[%clk 0:00:04.6]} 64... Kf5 {[%clk
0:00:09.9]} 65. a6 {[%clk 0:00:04.9]} 65... Qd5+ {[%clk 0:00:09.7]} 66. Bc5
{[%clk 0:00:05.4]} 66... Ke6 {[%clk 0:00:07.5]} 67. a7 {[%clk 0:00:06.3]} 67...
Qb7+ {[%clk 0:00:06.9]} 68. Kc4 {[%clk 0:00:05.8]} 68... Kd7 {[%clk 0:00:04.7]}
69. Kd4 {[%clk 0:00:05.8]} 69... Kc8 {[%clk 0:00:04.3]} 70. Kc4 {[%clk
0:00:05.7]} 70... Qe4+ {[%clk 0:00:03.8]} 71. Kb5 {[%clk 0:00:06.5]} 71... Kb7
{[%clk 0:00:03.6]} 72. Ka4 {[%clk 0:00:05.8]} 72... Qc2+ {[%clk 0:00:03]} 73.
Ka3 {[%clk 0:00:05.8]} 73... Qc1+ {[%clk 0:00:03.1]} 74. Kb3 {[%clk 0:00:06]}
74... Qd1+ {[%clk 0:00:02.9]} 75. Kc4 {[%clk 0:00:06.9]} 75... Qc2+ {[%clk
0:00:02.8]} 76. Kd4 {[%clk 0:00:07.8]} 76... Qd2+ {[%clk 0:00:02.7]} 77. Kc4
{[%clk 0:00:07.8]} 77... Ka8 {[%clk 0:00:02.9]} 78. b5 {[%clk 0:00:06.6]} 78...
Qc2+ {[%clk 0:00:02.8]} 79. Kb4 {[%clk 0:00:07.5]} 79... Qb2+ {[%clk 0:00:02.7]}
80. Kc4 {[%clk 0:00:07.9]} 80... Qa2+ {[%clk 0:00:02.7]} 81. Kd4 {[%clk
0:00:08.1]} 81... Qb3 {[%clk 0:00:02.6]} 82. b6 {[%clk 0:00:06.5]} 82... Kb7
{[%clk 0:00:02.6]} 83. Ke5 {[%clk 0:00:04.4]} 83... Qc4 {[%clk 0:00:02.3]} 84.
Bd4 {[%clk 0:00:03.7]} 84... Qb5+ {[%clk 0:00:02.2]} 85. Ke4 {[%clk 0:00:04.6]}
85... Qa6 {[%clk 0:00:01.9]} 86. Ke3 {[%clk 0:00:04.9]} 86... Kc6 {[%clk
0:00:01.6]} 87. Ke4 {[%clk 0:00:05.2]} 87... Kd6 {[%clk 0:00:01.4]} 88. Be3
{[%clk 0:00:05.3]} 88... Ke6 {[%clk 0:00:01.1]} 89. Bf4 {[%clk 0:00:05.6]} 1-0